bitfinex/quotes_SOLUSD_20250728
["timestamp","ask_amount","ask_price","bid_price","bid_amount"]
[1753739253257,9.01611381,185.31,185.28,0.7]
[1753739253465,26.0,185.33,185.28,0.7]
[1753739253466,9.02244001,185.32,185.28,0.7]
[1753739255471,3.62628584,185.32,185.29,4.96632721]
[1753739255672,9.02155728,185.35,185.3,43.50632721]
[1753739255876,4.02908499,185.34,185.31,0.7]
[1753739256069,9.02155728,185.35,185.32,0.7]
[1753739256682,3.62628584,185.35,185.32,0.7]
[1753739257076,4.02897254,185.34,185.32,0.7]
[1753739258279,3.62628584,185.35,185.33,0.7]
[1753739258480,3.62628584,185.36,185.33,0.7]
[1753739258671,4.02901883,185.35,185.32,0.7]
[1753739261296,9.42432743,185.35,185.32,0.7]
[1753739261477,5.3953086,185.35,185.32,0.7]
[1753739262094,5.9253086,185.35,185.3,38.54]
[1753739262394,4.02926056,185.34,185.31,0.7]
[1753739263891,4.02926056,185.34,185.3,37.84]
[1753739264094,5.92558532,185.34,185.3,37.84]
[1753739264304,10.89191253,185.34,185.3,38.54]
[1753739264599,3.62570591,185.33,185.3,38.54]
[1753739264969,3.62570591,185.33,185.3,37.84]
[1753739265283,3.62570591,185.33,185.31,0.7]
[1753739265880,9.02129123,185.34,185.31,0.7]
[1753739266082,4.02973088,185.33,185.31,0.7]
[1753739266688,4.02973088,185.33,185.29,37.82]
[1753739266916,4.55973088,185.33,185.29,38.51]
[1753739267073,3.62570591,185.33,185.29,38.51]
[1753739267680,0.53,185.32,185.29,37.82]
[1753739267879,5.92617145,185.32,185.28,37.82]
[1753739268389,5.92617145,185.32,185.28,38.51]
[1753739268774,9.5519952,185.32,185.28,38.51]
[1753739268976,5.92617145,185.32,185.28,38.51]
[1753739269594,9.5519952,185.32,185.28,38.51]
[1753739271204,5.92617145,185.32,185.28,38.51]
[1753739271388,9.55115382,185.32,185.28,38.51]
[1753739271590,5.92617145,185.32,185.28,38.51]
[1753739272202,9.55115382,185.32,185.28,38.51]
[1753739273792,9.02115382,185.32,185.28,38.51]
[1753739274201,9.02115382,185.32,185.28,37.82]
[1753739274427,9.02115382,185.32,185.29,0.69]
[1753739275621,14.51748103,185.32,185.28,37.82]
[1753739275793,3.62498237,185.31,185.29,0.69]
[1753739275985,9.02115382,185.32,185.29,0.69]
[1753739277379,4.03036835,185.31,185.29,0.69]
[1753739278278,9.42679058,185.31,185.28,37.82]
[1753739278478,5.39642223,185.31,185.28,38.51]
[1753739278700,5.39642223,185.31,185.29,0.69]
[1753739280697,9.0214046,185.31,185.28,37.82]
[1753739280903,9.0214046,185.31,185.28,38.51]
[1753739281289,4.03478921,185.3,185.28,38.51]
[1753739282078,4.03478921,185.3,185.28,37.82]
[1753739282288,4.03478921,185.3,185.28,38.51]
[1753739282689,4.03478921,185.3,185.28,37.82]
[1753739282892,7.65977158,185.3,185.28,37.82]
[1753739283095,3.62498237,185.3,185.28,37.82]
[1753739283301,12.19690912,185.31,185.28,37.82]
[1753739283496,4.03820537,185.3,185.28,37.82]
[1753739283706,7.66318774,185.3,185.28,38.51]
[1753739283914,3.62498237,185.3,185.28,38.51]
[1753739284405,4.03954076,185.29,185.28,38.51]
[1753739285681,4.03954076,185.29,185.28,37.82]
[1753739286005,7.66452313,185.29,185.27,0.75]
[1753739286205,4.03954076,185.28,185.27,0.75]
[1753739287082,7.66452313,185.28,185.27,0.75]
[1753739289900,13.06175974,185.28,185.27,0.75]
[1753739290104,9.43677737,185.28,185.27,0.06]
[1753739290286,13.06175974,185.28,185.27,0.06]
[1753739290486,20.28055893,185.28,185.27,0.06]
[1753739291280,20.81055893,185.28,185.27,0.06]
[1753739292104,25.34977433,185.28,185.27,0.06]
[1753739292289,20.81055893,185.28,185.27,0.06]
[1753739292805,22.59996868,185.28,185.27,0.06]
[1753739295108,27.13918408,185.28,185.27,0.06]
[1753739295322,28.95210722,185.28,185.27,0.06]
[1753739295621,0.28432314,185.26,185.25,0.06]
[1753739295787,59.32291515,185.26,185.25,0.06]
[1753739296128,59.85291515,185.26,185.25,0.06]
[1753739296490,65.25073443,185.26,185.25,0.06]
[1753739296710,60.70487449,185.26,185.25,0.06]
[1753739298194,65.24356939,185.26,185.25,0.06]
[1753739299102,69.52096054,185.26,185.25,0.06]
[1753739299293,64.98226564,185.26,185.25,0.06]
[1753739299713,60.17487449,185.26,185.25,0.06]
[1753739304011,56.66157982,185.26,185.25,0.06]
[1753739305414,60.68993354,185.26,185.25,0.06]
[1753739313324,31.24923741,185.24,185.22,0.06]
[1753739313528,11.84215168,185.22,185.2,0.2]
[1753739313727,0.28432314,185.2,185.19,1e-08]
[1753739314029,40.26339019,185.2,185.19,1e-08]
[1753739314206,26.0,185.18,185.17,1e-08]
[1753739314411,26.0,185.15,185.12,0.2]
[1753739314607,4.96491427,185.13,185.12,0.2]
[1753739314814,13.02166987,185.13,185.12,0.2]
[1753739315132,8.99345089,185.13,185.12,0.89]
[1753739315329,9.43014629,185.13,185.12,0.89]
[1753739316363,14.39506056,185.13,185.12,0.89]
[1753739318346,17.03900609,185.13,185.12,0.89]
[1753739324230,21.05154223,185.13,185.12,0.89]
[1753739324539,20.65532793,185.13,185.12,0.2]
[1753739325319,24.66720208,185.13,185.12,0.89]
[1753739326530,20.65532793,185.13,185.12,0.89]
[1753739328319,24.66775822,185.13,185.12,0.89]
[1753739328725,18.87272503,185.13,185.12,0.89]
[1753739329235,22.8857734,185.13,185.12,0.89]
[1753739330032,22.8857734,185.13,185.12,0.2]
[1753739330033,23.17009654,185.13,185.12,0.2]
[1753739330240,36.42934202,185.13,185.12,0.2]
[1753739330434,40.94956273,185.13,185.12,0.2]
[1753739331238,0.28432314,185.12,185.11,0.2]
[1753739331426,20.17434442,185.12,185.11,0.2]
[1753739331836,58.03434442,185.12,185.11,0.2]
[1753739332561,63.43624588,185.12,185.11,0.2]
[1753739332857,65.2151516,185.12,185.11,0.2]
[1753739333841,214.2151516,185.12,185.11,0.2]
[1753739336145,209.69534852,185.12,185.11,0.2]
[1753739336334,214.21500481,185.12,185.11,0.2]
[1753739336754,209.16534852,185.12,185.11,0.2]
[1753739336986,213.68479556,185.12,185.11,0.2]
[1753739337447,209.16534852,185.12,185.11,0.2]
[1753739337754,60.16534852,185.12,185.11,0.2]
[1753739338872,64.68513362,185.12,185.11,0.2]
[1753739339045,60.16534852,185.12,185.11,0.2]
[1753739341563,60.69534852,185.12,185.11,0.2]
[1753739341950,87.48003248,185.12,185.11,1e-08]
[1753739342152,26.28432314,185.09,185.08,0.06]
[1753739342360,80.76344706,185.09,185.08,0.06]
[1753739342663,100.0867846,185.09,185.08,1e-08]
[1753739342847,106.1390718,185.09,185.08,1e-08]
[1753739343551,121.01184881,185.09,185.08,1e-08]
[1753739343874,121.54184881,185.09,185.08,1e-08]
[1753739344248,121.54184881,185.09,185.06,1e-08]
[1753739344249,10.28432313,185.07,185.06,1e-08]
[1753739344452,64.76344705,185.07,185.06,1e-08]
[1753739344650,67.30141175,185.07,185.06,1e-08]
[1753739344840,57.30141176,185.07,185.06,1e-08]
[1753739345045,73.35369895,185.07,185.06,1e-08]
[1753739345247,72.70477264,185.07,185.06,1e-08]
[1753739346147,26.0,185.04,185.03,0.67]
[1753739346343,26.0,185.01,184.97,6.4767]
[1753739346573,11.64444832,185.0,184.97,6.4767]
[1753739346769,4.01406324,184.99,184.97,6.4767]
[1753739346953,4.01406324,184.99,184.98,0.67]
[1753739347357,13.43323934,184.99,184.98,0.67]
[1753739347542,17.04956118,184.99,184.98,0.67]
[1753739348272,17.04770214,184.99,184.98,0.67]
[1753739349167,22.02237774,184.99,184.98,0.67]
[1753739350868,22.02237774,184.99,184.98,0.73]
[1753739351578,18.00953639,184.99,184.98,0.73]
[1753739351780,13.03486079,184.99,184.98,0.73]
[1753739353690,17.04951356,184.99,184.98,0.73]
[1753739353990,17.04927745,184.99,184.98,0.73]
[1753739354974,17.04985285,184.99,184.98,0.73]
[1753739356275,22.02452845,184.99,184.98,0.06]
[1753739357185,26.53872262,184.99,184.98,0.06]
[1753739360591,26.54235309,184.99,184.98,0.06]
[1753739362869,24.75565312,184.99,184.98,0.06]
[1753739363289,33.75570296,184.99,184.95,0.66]
[1753739363478,29.18797563,184.96,184.94,0.06]
[1753739363794,49.52778572,184.95,184.94,0.06]
[1753739363991,52.71576135,184.95,184.94,0.06]
[1753739364493,52.71165572,184.95,184.94,0.06]
[1753739365783,58.11852244,184.95,184.94,0.72]
[1753739366089,50.09116419,184.95,184.94,0.72]
[1753739366291,58.11683683,184.95,184.94,0.72]
[1753739366998,59.91143245,184.95,184.94,0.72]
[1753739367287,59.91143245,184.95,184.94,0.06]
[1753739369008,59.90976556,184.95,184.94,0.06]
[1753739370804,64.41271841,184.95,184.94,0.06]
[1753739373611,64.69704155,184.95,184.94,0.06]
[1753739373816,64.69660439,184.95,184.94,0.06]
[1753739375727,60.18589623,184.95,184.94,0.06]
[1753739376634,55.20332498,184.95,184.94,0.06]
[1753739376937,59.90157309,184.95,184.94,0.72]
[1753739378193,59.90157309,184.95,184.94,0.06]
[1753739378493,59.90157309,184.95,184.93,0.2]
[1753739378704,47.13613104,184.94,184.93,0.2]
[1753739378896,47.13613104,184.94,184.93,0.86]
[1753739379490,42.61811171,184.94,184.93,0.86]
[1753739380396,48.02527078,184.94,184.93,0.86]
[1753739382734,48.02950469,184.94,184.93,0.86]
[1753739383612,48.02950469,184.94,184.93,0.2]
[1753739384512,48.02950469,184.94,184.93,0.86]
[1753739386815,46.23577721,184.94,184.93,0.86]
[1753739387061,50.76267966,184.94,184.93,0.86]
[1753739387213,46.23577721,184.94,184.93,0.86]
[1753739387809,47.57549363,184.94,184.93,0.86]
[1753739388001,85.45549363,184.94,184.93,0.86]
[1753739389427,80.92693344,184.94,184.93,0.86]
[1753739389617,84.11577721,184.94,184.93,0.86]
[1753739390127,43.04693344,184.94,184.93,0.86]
[1753739390308,84.11577721,184.94,184.93,0.86]
[1753739390920,84.12130216,184.94,184.93,0.86]
[1753739391302,80.93245839,184.94,184.93,0.86]
[1753739393326,85.46283502,184.94,184.93,0.86]
[1753739393718,85.4641105,184.94,184.93,0.86]
[1753739394328,88.65295427,184.94,184.93,0.86]
[1753739394736,85.4641105,184.94,184.93,0.86]
[1753739395037,88.65295427,184.94,184.93,0.86]
[1753739395710,88.65295427,184.94,184.93,0.2]
[1753739395911,85.4641105,184.94,184.93,0.89]
[1753739396326,81.43727166,184.94,184.93,0.89]
[1753739396627,85.46622324,184.94,184.93,0.89]
[1753739397018,88.65506701,184.94,184.93,0.89]
[1753739397213,84.12469038,184.94,184.9,0.06]
[1753739397534,12.15326454,184.93,184.9,0.06]
[1753739397733,45.49973596,184.92,184.9,0.06]
[1753739397943,7.61973596,184.91,184.9,0.06]
[1753739399234,7.61973596,184.91,184.9,0.75]
[1753739400206,13.0277723,184.91,184.9,0.75]
[1753739401535,9.01660287,184.91,184.9,0.75]
[1753739402311,11.69036634,184.91,184.9,0.75]
[1753739403909,11.69036634,184.91,184.9,0.06]
[1753739404110,15.16353325,184.91,184.9,0.06]
[1753739404346,21.87582045,184.91,184.89,0.06]
[1753739404553,45.3374103,184.9,184.89,0.06]
[1753739405853,50.74573912,184.9,184.89,0.06]
[1753739408745,54.78120835,184.9,184.89,0.06]
[1753739408937,58.81667758,184.9,184.89,0.06]
[1753739409129,59.10100072,184.9,184.89,0.06]
[1753739409333,65.15328792,184.9,184.89,0.06]
[1753739410259,59.10100072,184.9,184.89,0.06]
[1753739410462,65.15328792,184.9,184.89,0.06]
[1753739410769,65.14818888,184.9,184.89,0.06]
[1753739412234,26.0,184.87,184.86,0.69]
[1753739412430,75.55440595,184.87,184.86,0.69]
[1753739413449,80.96095423,184.87,184.86,0.69]
[1753739415067,43.08095423,184.87,184.86,0.69]
[1753739415371,80.96095423,184.87,184.86,0.69]
[1753739416448,43.08095423,184.87,184.86,0.69]
[1753739416645,80.96095423,184.87,184.86,0.69]
[1753739417061,80.96095423,184.87,184.86,0.75]
[1753739418254,80.96095423,184.87,184.86,0.06]
[1753739418652,80.95746163,184.87,184.86,0.06]
[1753739418967,80.95758067,184.87,184.86,0.06]
[1753739421773,80.95473986,184.87,184.86,0.06]
[1753739423052,84.14358363,184.87,184.86,0.06]
[1753739423687,89.67313618,184.87,184.86,0.06]
[1753739423855,85.13790677,184.87,184.86,0.06]
[1753739424557,85.1366188,184.87,184.86,0.06]
[1753739427373,89.66521624,184.87,184.86,0.06]
[1753739428162,85.1366188,184.87,184.86,0.06]
[1753739428371,89.66692204,184.87,184.86,0.06]
[1753739432775,86.47807827,184.87,184.86,0.06]
[1753739432980,89.66692204,184.87,184.86,0.06]
[1753739434266,85.1366188,184.87,184.85,0.06]
[1753739434551,170.60558525,184.86,184.85,0.06]
[1753739434768,170.60558525,184.86,184.85,0.76]
[1753739434976,211.67442902,184.86,184.85,0.76]
[1753739435177,211.67442902,184.86,184.85,0.06]
[1753739437982,208.48558525,184.86,184.85,0.06]
[1753739438155,207.14258828,184.86,184.85,0.06]
[1753739440288,211.67442902,184.86,184.85,0.06]
[1753739440881,208.48558525,184.86,184.85,0.06]
[1753739441076,212.38442902,184.86,184.85,0.06]
[1753739443390,207.85258828,184.86,184.85,0.06]
[1753739444668,26.0,184.83,184.82,0.7]
[1753739444869,37.66424543,184.83,184.78,4.77664377]
[1753739445190,11.66424543,184.82,184.78,4.77664377]
[1753739445483,11.66424543,184.81,184.79,0.7]
[1753739445690,7.63640598,184.8,184.79,0.7]
[1753739445897,4.02783945,184.8,184.79,0.7]
[1753739446270,7.63640598,184.8,184.79,0.7]
[1753739446467,4.02783945,184.8,184.79,0.7]
[1753739446771,7.63640598,184.8,184.79,0.7]
[1753739446974,4.02783945,184.8,184.79,0.7]
[1753739447162,7.63640598,184.8,184.79,0.7]
[1753739450082,3.60856653,184.8,184.79,0.7]
[1753739450588,7.64773258,184.8,184.79,0.7]
[1753739456781,7.64360632,184.8,184.79,0.7]
[1753739461409,7.64342608,184.8,184.79,0.7]
[1753739461721,7.64342608,184.8,184.79,0.76]
[1753739463215,7.64558883,184.8,184.79,0.76]
[1753739468583,13.76684424,184.8,184.79,0.06]
[1753739469492,13.76434979,184.8,184.79,0.06]
[1753739469692,17.79866748,184.8,184.79,0.06]
[1753739471403,34.51564977,184.8,184.71,0.06]
[1753739471610,3.18884377,184.74,184.71,0.06]
[1753739471787,10.83193815,184.73,184.71,0.06]
[1753739472112,7.64196256,184.72,184.71,0.06]
[1753739472308,4.7433947,184.72,184.71,0.06]
[1753739472515,0.71,184.72,184.71,0.06]
[1753739473509,6.12359896,184.72,184.71,0.06]
[1753739473700,9.02190734,184.73,184.71,0.06]
[1753739473878,0.71,184.72,184.71,0.06]
[1753739474895,4.33320475,184.72,184.71,0.06]
[1753739475303,7.52204852,184.72,184.71,0.06]
[1753739475499,9.31244273,184.72,184.71,0.06]
[1753739475703,16.95802742,184.72,184.71,0.06]
[1753739476109,203.81802742,184.72,184.71,0.06]
[1753739476508,203.81719111,184.72,184.71,0.06]
[1753739476701,220.88619822,184.72,184.71,1e-08]
[1753739477290,17.24151425,184.72,184.71,1e-08]
[1753739477493,55.10151425,184.72,184.71,1e-08]
[1753739478406,16.95719111,184.72,184.71,1e-08]
[1753739478611,12.22392481,184.72,184.71,1e-08]
[1753739479420,9.03508104,184.72,184.71,1e-08]
[1753739481813,9.68508104,184.72,184.71,1e-08]
[1753739482256,9.67363239,184.72,184.71,1e-08]
[1753739482915,12.86247616,184.72,184.71,1e-08]
[1753739484236,12.89247616,184.72,184.71,1e-08]
[1753739484435,16.90619428,184.72,184.71,1e-08]
[1753739486549,13.71735051,184.72,184.71,1e-08]
[1753739486839,16.90619428,184.72,184.71,1e-08]
[1753739487835,17.19051742,184.72,184.71,1e-08]
[1753739488024,21.202388,184.72,184.71,1e-08]
[1753739488423,45.91357197,184.72,184.71,1e-08]
[1753739488625,50.42611375,184.72,184.71,1e-08]
[1753739489142,50.42611375,184.72,184.61,0.71]
[1753739489143,42.78468397,184.68,184.61,0.71]
[1753739489320,29.18884377,184.64,184.61,0.71]
[1753739489831,29.83884377,184.64,184.61,0.71]
[1753739490819,5.41623788,184.63,184.61,0.71]
[1753739491050,5.41623788,184.63,184.59,0.71]
[1753739491252,9.01507385,184.63,184.57,4.9992811]
[1753739491549,11.76981733,184.63,184.58,0.71]
[1753739491753,12.41981733,184.63,184.59,0.71]
[1753739492243,17.41909843,184.63,184.59,0.71]
[1753739492449,13.82026246,184.63,184.59,0.71]
[1753739492618,5.41682465,184.61,184.59,0.71]
[1753739493426,5.41682465,184.61,184.57,5.7092811]
[1753739493744,5.41682465,184.61,184.58,0.71]
[1753739494124,5.41653125,184.62,184.56,4.9992811]
[1753739494333,9.01056219,184.62,184.57,5.7092811]
[1753739494539,9.01056219,184.62,184.58,0.71]
[1753739494722,9.01056219,184.62,184.59,0.71]
[1753739494921,26.0,184.6,184.59,0.71]
[1753739495127,26.0,184.6,184.57,4.9992811]
[1753739495325,26.0,184.6,184.57,0.71]
[1753739496346,31.4172981,184.6,184.57,0.71]
[1753739497328,32.0672981,184.6,184.57,0.71]
[1753739498618,13.22708126,184.59,184.54,0.71]
[1753739498818,13.22708126,184.59,184.48,6.8285]
[1753739498819,8.58587892,184.58,184.48,6.8285]
[1753739499015,5.6492811,184.57,184.5,4.9992811]
[1753739499323,0.65,184.56,184.5,5.7092811]
[1753739499823,0.65,184.56,184.51,0.71]
[1753739500025,0.65,184.56,184.5,4.9992811]
[1753739500225,5.41858574,184.55,184.52,0.71]
[1753739500729,2.75474348,184.63,184.55,22.95118397]
[1753739500935,149.0,184.65,184.62,4.9992811]
[1753739501119,6.06397236,184.71,184.64,4.9992811]
[1753739501325,33.97414698,184.7,184.66,4.9992811]
[1753739501524,33.97414698,184.7,184.67,0.71]
[1753739501525,11.55906361,184.69,184.67,0.71]
[1753739501734,3.98707349,184.68,184.67,0.71]
[1753739502128,29.98707349,184.68,184.67,0.71]
[1753739503043,3.98707349,184.68,184.67,0.71]
[1753739503437,29.98707349,184.69,184.67,0.71]
[1753739503644,3.98707349,184.68,184.67,5.7092811]
[1753739503833,4.01707349,184.72,184.67,5.7092811]
[1753739504032,7.97568847,184.71,184.68,4.9992811]
[1753739504234,7.97568847,184.7,184.69,0.71]
[1753739504641,33.97568847,184.7,184.69,0.71]
[1753739504843,33.97797105,184.7,184.69,0.71]
[1753739507653,33.98600792,184.7,184.69,0.71]
[1753739509743,33.98600792,184.7,184.67,5.6492811]
[1753739509970,3.99300396,184.69,184.68,0.65]
[1753739513064,7.59532374,184.69,184.68,0.65]
[1753739515464,7.61120237,184.69,184.68,0.65]
[1753739516472,7.61120237,184.69,184.66,5.6492811]
[1753739516668,4.00888259,184.68,184.66,4.9992811]
[1753739516872,4.00888259,184.68,184.67,0.65]
[1753739518857,4.00888259,184.68,184.67,5.6492811]
[1753739519073,26.0,184.7,184.67,5.6492811]
[1753739519272,4.01723894,184.69,184.68,0.65]
[1753739519782,26.0,184.7,184.69,0.65]
[1753739519961,33.63313061,184.7,184.69,0.65]
[1753739520486,33.63313061,184.7,184.67,5.6492811]
[1753739520706,26.0,184.7,184.68,0.65]
[1753739528259,26.0,184.7,184.69,5.6492811]
[1753739529170,26.0,184.7,184.69,0.65]
[1753739530173,26.0,184.7,184.68,5.6492811]
[1753739530681,26.0,184.7,184.69,0.65]
[1753739531279,26.0,184.7,184.68,5.0592811]
[1753739531454,26.0,184.7,184.68,5.7092811]
[1753739532262,26.0,184.7,184.68,0.71]
[1753739532459,26.0,184.7,184.68,5.7092811]
[1753739535477,26.0,184.7,184.69,4.9992811]
[1753739536779,26.0,184.7,184.68,3.9058026]
[1753739537470,32.11434486,184.7,184.68,0.06]
[1753739537674,31.41434486,184.7,184.68,3.2558026]
[1753739539982,31.41434486,184.7,184.68,0.06]
[1753739540397,31.41434486,184.7,184.68,3.2558026]
[1753739540575,31.41434486,184.7,184.68,0.06]
[1753739542680,32.11434486,184.7,184.68,0.06]
[1753739544591,3.6386712,184.69,184.68,0.06]
[1753739545380,7.68599036,184.69,184.68,0.06]
[1753739547482,7.68803583,184.69,184.68,0.06]
[1753739548569,7.68803583,184.69,184.68,37.94]
[1753739550498,7.69049728,184.69,184.68,37.94]
[1753739550796,11.7429687,184.69,184.68,37.94]
[1753739551693,11.74327934,184.69,184.68,37.94]
[1753739551900,11.74327934,184.69,184.68,0.06]
[1753739552235,11.74327934,184.69,184.68,37.94]
[1753739552897,11.7442779,184.69,184.68,37.94]
[1753739553096,11.7442779,184.69,184.68,0.06]
[1753739553401,11.7442779,184.69,184.68,37.94]
[1753739553801,17.15875621,184.69,184.68,0.06]
[1753739554102,17.85875621,184.69,184.68,37.94]
[1753739554895,17.15875621,184.69,184.68,37.94]
[1753739555599,17.17222077,184.69,184.68,37.94]
[1753739556700,17.87222077,184.69,184.68,0.06]
[1753739556882,22.37693326,184.69,184.68,0.06]
[1753739561090,22.37297626,184.69,184.68,0.06]
[1753739561486,25.56877886,184.69,184.68,0.06]
[1753739561799,34.60026215,184.69,184.64,37.88]
[1753739562001,17.0148166,184.68,184.64,37.88]
[1753739562190,11.75378546,184.67,184.64,37.88]
[1753739562395,12.45378546,184.66,184.64,37.88]
[1753739562597,11.75378546,184.65,184.64,37.88]
[1753739563417,17.16943669,184.65,184.64,37.88]
[1753739563785,17.15463583,184.65,184.64,37.88]
[1753739564118,17.15463583,184.65,184.64,41.7758026]
[1753739565401,17.15463583,184.65,184.64,37.88]
[1753739565793,17.85463583,184.65,184.64,37.88]
[1753739566888,17.15463583,184.65,184.64,37.88]
[1753739568212,13.10447913,184.65,184.64,37.88]
[1753739568506,13.10447913,184.65,184.62,3.8958026]
[1753739568707,13.10477244,184.64,184.63,37.88]
[1753739570215,7.6888279,184.64,184.63,41.7458026]
[1753739570393,3.6386712,184.67,184.63,41.7458026]
[1753739570589,7.6849003,184.66,184.65,3.1958026]
[1753739570913,7.6849003,184.66,184.65,41.7458026]
[1753739571312,8.3349003,184.66,184.65,37.88]
[1753739572199,17.79521755,184.66,184.65,37.88]
[1753739577218,17.79458797,184.66,184.65,37.88]
[1753739579124,17.79458797,184.66,184.62,3.1958026]
[1753739579327,13.74980243,184.65,184.63,37.88]
[1753739579494,7.68395061,184.64,184.63,37.88]
[1753739581731,7.68493174,184.64,184.63,37.88]
[1753739582612,4.04626054,184.64,184.63,37.88]
[1753739583228,9.46220508,184.64,184.63,37.88]
[1753739583426,13.75087628,184.64,184.63,37.88]
[1753739583605,13.75087628,184.64,184.61,37.88]
[1753739583806,7.68493174,184.63,184.61,37.88]
[1753739584011,3.6386712,184.62,184.61,37.88]
[1753739584241,4.04565023,184.62,184.61,37.88]
[1753739584452,7.68137114,184.62,184.61,37.88]
[1753739584735,4.04269994,184.62,184.61,37.88]
[1753739584917,13.09790239,184.62,184.61,37.88]
[1753739585304,9.45923119,184.62,184.61,37.88]
[1753739585509,13.74790239,184.62,184.61,37.88]
[1753739586826,13.74790239,184.62,184.59,38.55]
[1753739587031,13.74790239,184.62,184.59,37.88]
[1753739587032,7.68137114,184.61,184.59,37.88]
[1753739587220,9.05520245,184.62,184.6,0.67]
[1753739587534,4.04005298,184.61,184.6,0.67]
[1753739587831,180.41711809,184.6,184.56,0.06]
[1753739588135,26.0,184.57,184.56,0.06]
[1753739588304,33.67612605,184.57,184.56,0.06]
[1753739588500,30.2886712,184.57,184.56,0.06]
[1753739588809,34.32609642,184.57,184.56,0.06]
[1753739589007,30.2886712,184.57,184.56,0.06]
[1753739589403,34.32418418,184.57,184.56,0.06]
[1753739589911,39.74220202,184.57,184.56,0.06]
[1753739590110,39.74311813,184.57,184.56,0.06]
[1753739591435,46.4091596,184.57,184.56,0.06]
[1753739591618,88.70586257,184.57,184.56,0.06]
[1753739592046,83.7039211,184.57,184.56,0.06]
[1753739592222,84.67348274,184.57,184.56,0.06]
[1753739593526,97.65452216,184.57,184.56,0.06]
[1753739594135,35.99999999,184.53,184.44,0.67]
[1753739594342,5.00194147,184.47,184.44,0.67]
[1753739594715,5.65194147,184.47,184.44,0.67]
[1753739595126,26.0,184.47,184.44,0.67]
[1753739595436,5.42122953,184.46,184.45,0.67]
[1753739596150,5.42122953,184.46,184.43,0.67]
[1753739596836,5.42171493,184.45,184.43,0.67]
[1753739597277,5.42171493,184.45,184.4,5.00194147]
[1753739597432,6.13171493,184.45,184.41,0.67]
[1753739597636,8.18536815,184.45,184.41,0.67]
[1753739597824,8.89536815,184.45,184.41,0.67]
[1753739598333,13.89730962,184.45,184.41,0.67]
[1753739598747,8.89536815,184.45,184.41,0.67]
[1753739598917,13.89730962,184.45,184.41,0.67]
[1753739599421,26.0,184.42,184.4,0.67]
[1753739599616,26.0,184.42,184.38,0.67]
[1753739599849,31.71194147,184.42,184.38,0.67]
[1753739600027,0.71,184.41,184.37,0.77]
[1753739600340,0.71,184.41,184.38,0.67]
[1753739601043,5.71194147,184.41,184.38,0.67]
[1753739601450,5.42299349,184.4,184.38,0.67]
[1753739601658,5.42299349,184.4,184.37,0.77]
[1753739602229,6.13299349,184.4,184.37,0.77]
[1753739602529,5.71194147,184.39,184.37,0.1]
[1753739602835,5.00194147,184.38,184.37,0.1]
[1753739603234,8.99856441,184.38,184.37,0.1]
[1753739603556,18.01794414,184.38,184.37,0.1]
[1753739603761,167.72794414,184.38,184.37,0.1]
[1753739603966,168.01226728,184.38,184.37,0.1]
[1753739605534,167.72794414,184.38,184.37,0.1]
[1753739606860,162.01600267,184.38,184.37,0.1]
[1753739607549,167.01794414,184.38,184.37,0.1]
[1753739609236,165.99807747,184.38,184.37,0.77]
[1753739610236,170.55910861,184.38,184.37,0.77]
[1753739610442,16.13552688,184.38,184.37,5.77194147]
[1753739610643,149.0,184.43,184.37,17.40581737]
[1753739610954,7.55719063,184.42,184.4,5.00194147]
[1753739611152,7.55719063,184.41,184.4,5.00194147]
[1753739611361,3.98082886,184.41,184.4,5.00194147]